fUST/lending_fUST_20250719
["ID","MTS","AMOUNT","RATE_DAILY","PERIOD"]
[373155645,1752887455417,-460.0,0.0001726,2]
[373155646,1752887455426,-460.0,0.0001726,2]
[373155647,1752887455435,-1848.28,0.0001726,2]
[373155648,1752887455445,-460.0,0.0001726,2]
[373155649,1752887455455,-2148.2,0.0001726,2]
[373155650,1752887455464,-482.44,0.0001726,2]
[373155651,1752887455475,-464.92,0.0001726,2]
[373155652,1752887455484,-460.0,0.0001726,2]
[373155653,1752887455493,-460.0,0.0001726,2]
[373155654,1752887455503,-518.51,0.0001726,2]
[373155655,1752887455512,-460.0,0.0001726,2]
[373155656,1752887455522,-545.24,0.0001726,2]
[373155657,1752887455531,-460.0,0.0001726,2]
[373155658,1752887455540,-460.0,0.0001726,2]
[373155659,1752887455549,-460.0,0.0001726,2]
[373155660,1752887455559,-460.0,0.0001726,2]
[373155661,1752887455569,-460.0,0.0001726,2]
[373155662,1752887455578,-460.0,0.0001726,2]
[373155663,1752887455588,-460.0,0.0001726,2]
[373155664,1752887455599,-462.91791883,0.0001726,2]
[373155665,1752887455608,-460.0,0.0001726,2]
[373155666,1752887455618,-3362.66,0.0001726,2]
[373155667,1752887455627,-460.0,0.0001726,2]
[373155668,1752887455637,-460.0,0.0001726,2]
[373155669,1752887455647,-460.0,0.0001726,2]
[373155670,1752887455657,-477.85,0.0001726,2]
[373155671,1752887455668,-460.0,0.0001726,2]
[373155672,1752887455679,-460.0,0.0001726,2]
[373155673,1752887455690,-460.0,0.0001726,2]
[373155674,1752887455700,-465.34286052,0.0001726,2]
[373155675,1752887455710,-460.0,0.0001726,2]
[373155676,1752887455793,-365.87314237,0.0001726,2]
[373155677,1752887455805,-460.0,0.0001726,2]
[373155678,1752887455817,-460.0,0.0001726,2]
[373155679,1752887455829,-838.3,0.0001726,2]
[373155680,1752887455839,-460.0,0.0001726,2]
[373155681,1752887455851,-460.0,0.0001726,2]
[373155682,1752887455862,-579.24,0.0001726,2]
[373155683,1752887455871,-460.0,0.0001726,2]
[373155684,1752887455880,-460.0,0.0001726,2]
[373155685,1752887455889,-460.0,0.0001726,2]
[373155686,1752887455899,-460.0,0.0001726,2]
[373155687,1752887455908,-460.0,0.0001726,2]
[373155688,1752887455919,-460.0,0.0001726,2]
[373155689,1752887455930,-460.0,0.0001726,2]
[373155690,1752887455940,-460.0,0.0001726,2]
[373155691,1752887455951,-610.12,0.0001726,2]
[373155692,1752887455962,-460.0,0.0001726,2]
[373155693,1752887455975,-486.71854559,0.0001726,2]
[373155694,1752887455986,-460.0,0.0001726,2]
[373155695,1752887455997,-460.0,0.0001726,2]
[373155696,1752887456006,-503.83,0.0001726,2]
[373155697,1752887456015,-515.52,0.0001726,2]
[373155698,1752887456025,-460.0,0.0001726,2]
[373155699,1752887456036,-460.0,0.0001726,2]
[373155700,1752887456045,-487.24,0.0001726,2]
[373155701,1752887456054,-4489.86,0.0001726,2]
[373155702,1752887456064,-465.45235023,0.0001726,2]
[373155703,1752887456073,-460.0,0.0001726,2]
[373155704,1752887456083,-460.0,0.0001726,2]
[373155705,1752887456092,-460.0,0.0001726,2]
[373155706,1752887456105,-460.0,0.0001726,2]
[373155707,1752887456115,-460.0,0.0001726,2]
[373155708,1752887456124,-666.5,0.0001726,2]
[373155709,1752887456134,-622.41,0.0001726,2]
[373155710,1752887456143,-460.0,0.0001726,2]
[373155711,1752887456155,-460.0,0.0001726,2]
[373155712,1752887456165,-460.0,0.0001726,2]
[373155713,1752887456174,-2494.33,0.0001726,2]
[373155714,1752887456183,-460.0,0.0001726,2]
[373155715,1752887456193,-592.03,0.0001726,2]
[373155716,1752887456202,-460.0,0.0001726,2]
[373155717,1752887456211,-460.0,0.0001726,2]
[373155718,1752887456220,-460.0,0.0001726,2]
[373155719,1752887456230,-781.0,0.0001726,2]
[373155720,1752887456239,-1924.42,0.0001726,2]
[373155721,1752887456250,-777.69,0.0001726,2]
[373155722,1752887456259,-496.74,0.0001726,2]
[373155723,1752887456270,-460.0,0.0001726,2]
[373155724,1752887456280,-460.0,0.0001726,2]
[373155725,1752887456290,-460.0,0.0001726,2]
[373155726,1752887456300,-494.0,0.0001726,2]
[373155727,1752887456310,-460.0,0.0001726,2]
[373155728,1752887456319,-1019.11,0.0001726,2]
[373155729,1752887456329,-460.0,0.0001726,2]
[373155730,1752887456339,-460.0,0.0001726,2]
[373155731,1752887456352,-460.0,0.0001726,2]
[373155732,1752887456361,-463.71305265,0.0001726,2]
[373155733,1752887456371,-564.63,0.0001726,2]
[373155734,1752887456381,-556.53,0.0001726,2]
[373155735,1752887456391,-541.96,0.0001726,2]
[373155736,1752887456400,-460.0,0.0001726,2]
[373155737,1752887456409,-460.0,0.0001726,2]
[373155738,1752887456418,-460.0,0.0001726,2]
[373155739,1752887456428,-1447.51,0.0001726,2]
[373155740,1752887456437,-460.0,0.0001726,2]
[373155741,1752887456447,-460.0,0.0001726,2]
[373155742,1752887456458,-460.0,0.0001726,2]
[373155743,1752887456467,-635.79,0.0001726,2]
[373155744,1752887456478,-460.0,0.0001726,2]
[373155745,1752887456489,-460.0,0.0001726,2]
[373155746,1752887456499,-460.0,0.0001726,2]
[373155747,1752887456510,-1371.73,0.0001726,2]
[373155748,1752887456521,-460.0,0.0001726,2]
[373155749,1752887456530,-1999.99,0.0001726,2]
[373155750,1752887456541,-4634.36,0.0001726,2]
[373155751,1752887456551,-300.92837001,0.0001726,2]
[373155752,1752887456560,-460.0,0.0001726,2]
[373155753,1752887456570,-460.0,0.0001726,2]
[373155754,1752887456579,-460.0,0.0001726,2]
[373155755,1752887456588,-460.0,0.0001726,2]
[373155756,1752887456599,-2972.84,0.0001726,2]
[373155757,1752887456608,-460.0,0.0001726,2]
[373155758,1752887456618,-460.0,0.0001726,2]
[373155759,1752887456627,-460.0,0.0001726,2]
[373155760,1752887456637,-551.48,0.0001726,2]
[373155761,1752887456647,-460.0,0.0001726,2]
[373155762,1752887456656,-460.0,0.0001726,2]
[373155763,1752887456666,-460.0,0.0001726,2]
[373155764,1752887456677,-460.0,0.0001726,2]
[373155765,1752887456686,-692.09,0.0001726,2]
[373155766,1752887456696,-460.0,0.0001726,2]
[373155767,1752887456706,-1000.0,0.00017321,2]
[373155768,1752887456715,-1000.0,0.00017321,2]
[373155769,1752887456725,-970.65309576,0.00017321,2]
[373155770,1752887456734,-500.32697435,0.00017321,2]
[373155771,1752887456743,-1000.0,0.00017321,2]
[373155772,1752887456753,-500.0,0.00017379,2]
[373155773,1752887456763,-500.0,0.00017379,2]
[373155774,1752887456778,-500.0,0.00017379,2]
[373155775,1752887456789,-379.32138761,0.000174,2]
[373155776,1752887456800,-500.0,0.000174,2]
[373155777,1752887456809,-500.0,0.00017418,2]
[373155778,1752887456821,-187.0,0.00017425,3]
[373155779,1752887456831,-1730.61,0.000175,2]
[373155780,1752887456841,-334.87578008,0.000175,2]
[373155781,1752887456852,-500.68768249,0.00017521,2]
[373155782,1752887456862,-1001.3739625,0.00017521,2]
[373155783,1752887456871,-1000.0,0.00017521,2]
[373155784,1752887456881,-1000.0,0.00017521,2]
[373155785,1752887456891,-1000.0,0.00017521,2]
[373155786,1752887456901,-500.0,0.00017521,2]
[373155787,1752887456913,-1000.0,0.00017521,2]
[373155788,1752887456923,-563.3007581,0.00017521,2]
[373155789,1752887456932,-1000.0,0.00017521,2]
[373155790,1752887456942,-501.83548984,0.00017521,2]
[373155791,1752887456952,-1000.0,0.00017521,2]
[373155792,1752887456961,-500.84310535,0.00017521,2]
[373155793,1752887456971,-325.67799537,0.00017521,2]
[373155794,1752887456980,-301.60066525,0.00017521,2]
[373155795,1752887456989,-1000.0,0.00017521,2]
[373155796,1752887456999,-329.48311286,0.00017523,2]
[373155797,1752887457008,-606.32,0.00017533,2]
[373155798,1752887457018,-460.0,0.00017534,2]
[373155799,1752887457027,-460.0,0.00017534,2]
[373155800,1752887457036,-828.36,0.00017534,2]
[373155801,1752887457046,-460.0,0.00017534,2]
[373155802,1752887457055,-460.0,0.00017534,2]
[373155803,1752887457064,-460.0,0.00017534,2]
[373155804,1752887457074,-511.06201576,0.00017534,2]
[373155805,1752887457084,-460.0,0.00017534,2]
[373155806,1752887457093,-460.0,0.00017534,2]
[373155807,1752887457105,-460.0,0.00017534,2]
[373155808,1752887457114,-460.0,0.00017534,2]
[373155809,1752887457124,-460.0,0.00017534,2]
[373155810,1752887457133,-460.0,0.00017534,2]
[373155811,1752887457143,-460.0,0.00017534,2]
[373155812,1752887457223,-568.7291956,0.00017534,2]
[373155813,1752887457233,-460.0,0.00017534,2]
[373155814,1752887457243,-460.0,0.00017534,2]
[373155815,1752887457252,-460.0,0.00017534,2]
[373155816,1752887457261,-460.0,0.00017534,2]
[373155817,1752887457271,-393.76117939,0.00017534,2]
[373155818,1752887457280,-460.0,0.00017534,2]
[373155819,1752887457290,-460.0,0.00017534,2]
[373155820,1752887457299,-524.31,0.00017534,2]
[373155821,1752887457308,-460.0,0.00017534,2]
[373155822,1752887457319,-460.0,0.00017534,2]
[373155823,1752887457328,-460.0,0.00017534,2]
[373155824,1752887457337,-460.0,0.00017534,2]
[373155825,1752887457349,-460.0,0.00017534,2]
[373155826,1752887457358,-460.0,0.00017534,2]
[373155827,1752887457368,-460.0,0.00017534,2]
[373155828,1752887457377,-460.0,0.00017534,2]
[373155829,1752887457387,-460.0,0.00017534,2]
[373155830,1752887457397,-460.0,0.00017534,2]
[373155831,1752887457406,-460.0,0.00017534,2]
[373155832,1752887457416,-460.0,0.00017534,2]
[373155833,1752887457425,-239.21855167,0.00017534,2]
[373155834,1752887457435,-460.0,0.00017534,2]
[373155835,1752887457444,-460.0,0.00017534,2]
[373155836,1752887457454,-460.0,0.00017534,2]
[373155837,1752887457463,-460.0,0.00017534,2]
[373155838,1752887457473,-460.0,0.00017534,2]
[373155839,1752887457483,-460.0,0.00017534,2]
[373155840,1752887457493,-460.0,0.00017534,2]
[373155841,1752887457503,-460.0,0.00017534,2]
[373155842,1752887457513,-460.0,0.00017534,2]
[373155843,1752887457522,-460.0,0.00017534,2]
[373155844,1752887457531,-460.0,0.00017534,2]
[373155845,1752887457540,-460.0,0.00017534,2]
[373155846,1752887457550,-460.0,0.00017534,2]
[373155847,1752887457559,-460.0,0.00017534,2]
[373155848,1752887457569,-460.0,0.00017534,2]
[373155849,1752887457579,-460.0,0.00017534,2]
[373155850,1752887457588,-460.0,0.00017534,2]
[373155851,1752887457598,-460.0,0.00017534,2]
[373155852,1752887457608,-467.62937156,0.00017534,2]
[373155853,1752887457617,-460.0,0.00017534,2]
[373155854,1752887457627,-460.0,0.00017534,2]
[373155855,1752887457636,-460.0,0.00017534,2]
[373155856,1752887457645,-460.0,0.00017534,2]
[373155857,1752887457655,-465.53508473,0.00017534,2]
[373155858,1752887457665,-460.0,0.00017534,2]
[373155859,1752887457674,-460.0,0.00017534,2]
[373155860,1752887457683,-460.0,0.00017534,2]
[373155861,1752887457693,-460.0,0.00017534,2]
[373155862,1752887457703,-559.02,0.00017534,2]
[373155863,1752887457712,-460.0,0.00017534,2]
[373155864,1752887457721,-460.0,0.00017534,2]
[373155865,1752887457731,-770.38,0.00017534,2]
[373155866,1752887457740,-460.0,0.00017534,2]
[373155867,1752887457750,-480.33,0.00017534,2]
[373155868,1752887457759,-526.17,0.00017534,2]
[373155869,1752887457770,-460.0,0.00017534,2]
[373155870,1752887457783,-460.0,0.00017534,2]
[373155871,1752887457793,-378.37958618,0.00017534,2]
[373155872,1752887457802,-460.0,0.00017534,2]
[373155873,1752887457811,-460.0,0.00017534,2]
[373155874,1752887457821,-460.0,0.00017534,2]
[373155875,1752887457831,-460.0,0.00017534,2]
[373155876,1752887457840,-460.0,0.00017534,2]
[373155877,1752887457853,-460.0,0.00017534,2]
[373155878,1752887457863,-460.0,0.00017534,2]
[373155879,1752887457874,-460.0,0.00017534,2]
[373155880,1752887457883,-463.43253429,0.00017534,2]
[373155881,1752887457892,-460.0,0.00017534,2]
[373155882,1752887457902,-470.9569608,0.00017534,2]
[373155883,1752887457911,-460.0,0.00017534,2]
[373155884,1752887457921,-460.0,0.00017534,2]
[373155885,1752887457930,-460.0,0.00017534,2]
[373155886,1752887457939,-460.0,0.00017534,2]
[373155887,1752887457949,-465.79531948,0.00017534,2]
[373155888,1752887457958,-460.0,0.00017534,2]
[373155889,1752887457967,-460.0,0.00017534,2]
[373155890,1752887457977,-590.9613605,0.00017534,2]
[373155891,1752887457986,-460.0,0.00017534,2]
[373155892,1752887457995,-460.0,0.00017534,2]
[373155893,1752887458005,-460.0,0.00017534,2]
[373155894,1752887458014,-490.15,0.00017534,2]
[373155895,1752887458024,-460.0,0.00017534,2]
[373155896,1752887458033,-460.0,0.00017534,2]
[373155897,1752887458042,-460.0,0.00017534,2]
[373155898,1752887458051,-460.0,0.00017534,2]
[373155899,1752887458061,-470.12143258,0.00017534,2]
[373155900,1752887458070,-460.0,0.00017534,2]
[373155901,1752887458080,-460.0,0.00017534,2]
[373155902,1752887458090,-460.0,0.00017534,2]
[373155903,1752887458102,-460.0,0.00017534,2]
[373155904,1752887458112,-460.0,0.00017534,2]
[373155905,1752887458121,-460.0,0.00017534,2]
[373155906,1752887458130,-460.0,0.00017534,2]
[373155907,1752887458140,-460.0,0.00017534,2]
[373155908,1752887458149,-460.0,0.00017534,2]
[373155909,1752887458159,-684.73,0.00017534,2]
[373155910,1752887458168,-460.0,0.00017534,2]
[373155911,1752887458179,-460.0,0.00017534,2]
[373155912,1752887458188,-460.0,0.00017534,2]
[373155913,1752887458199,-460.0,0.00017534,2]
[373155914,1752887458209,-460.0,0.00017534,2]
[373155915,1752887458221,-460.0,0.00017534,2]
[373155916,1752887458231,-460.0,0.00017534,2]
[373155917,1752887458241,-460.0,0.00017534,2]
[373155918,1752887458252,-460.0,0.00017534,2]
[373155919,1752887458263,-433.34795569,0.00017534,2]
[373155920,1752887458273,-460.0,0.00017534,2]
[373155921,1752887458283,-460.0,0.00017534,2]
[373155922,1752887458294,-460.0,0.00017534,2]
[373155923,1752887458304,-460.0,0.00017534,2]
[373155924,1752887458316,-460.0,0.00017534,2]
[373155925,1752887458326,-460.0,0.00017534,2]
[373155926,1752887458338,-460.0,0.00017534,2]
[373155927,1752887458347,-1489.34,0.00017534,2]
[373155928,1752887458358,-460.0,0.00017534,2]
[373155929,1752887458368,-1088.39,0.00017534,2]
[373155930,1752887458377,-460.0,0.00017534,2]
[373155931,1752887458387,-460.0,0.00017534,2]
[373155932,1752887458397,-460.0,0.00017534,2]
[373155933,1752887458408,-598.06,0.00017534,2]
[373155934,1752887458419,-460.0,0.00017534,2]
[373155935,1752887458430,-460.0,0.00017534,2]
[373155936,1752887458441,-460.0,0.00017534,2]
[373155937,1752887458519,-460.0,0.00017534,2]
[373155938,1752887458530,-460.0,0.00017534,2]
[373155939,1752887458539,-460.0,0.00017534,2]
[373155940,1752887458549,-460.0,0.00017534,2]
[373155941,1752887458560,-460.0,0.00017534,2]
[373155942,1752887458571,-1565.75,0.00017534,2]
[373155943,1752887458580,-460.0,0.00017534,2]
[373155944,1752887458590,-460.0,0.00017534,2]
[373155945,1752887458604,-460.0,0.00017534,2]
[373155946,1752887458613,-387.67244614,0.00017534,2]
[373155947,1752887458628,-460.0,0.00017534,2]
[373155948,1752887458637,-460.0,0.00017534,2]
[373155949,1752887458647,-460.0,0.00017534,2]
[373155950,1752887458656,-460.0,0.00017534,2]
[373155951,1752887458666,-460.0,0.00017534,2]
[373155952,1752887458675,-460.0,0.00017534,2]
[373155953,1752887458684,-1848.28,0.00017534,2]
[373155954,1752887458694,-460.0,0.00017534,2]
[373155955,1752887458703,-2148.2,0.00017534,2]
[373155956,1752887458713,-482.44,0.00017534,2]
[373155957,1752887458723,-464.92,0.00017534,2]
[373155958,1752887458732,-460.0,0.00017534,2]
[373155959,1752887458743,-460.0,0.00017534,2]
[373155960,1752887458753,-518.51,0.00017534,2]
[373155961,1752887458762,-460.0,0.00017534,2]
[373155962,1752887458773,-545.24,0.00017534,2]
[373155963,1752887458782,-460.0,0.00017534,2]
[373155964,1752887458791,-460.0,0.00017534,2]
[373155965,1752887458800,-460.0,0.00017534,2]
[373155966,1752887458810,-460.0,0.00017534,2]
[373155967,1752887458820,-460.0,0.00017534,2]
[373155968,1752887458829,-460.0,0.00017534,2]
[373155969,1752887458838,-460.0,0.00017534,2]
[373155970,1752887458850,-460.0,0.00017534,2]
[373155971,1752887458861,-3362.66,0.00017534,2]
[373155972,1752887458871,-460.0,0.00017534,2]
[373155973,1752887458880,-460.0,0.00017534,2]
[373155974,1752887458890,-460.0,0.00017534,2]
[373155975,1752887458899,-477.85,0.00017534,2]
[373155976,1752887458909,-460.0,0.00017534,2]
[373155977,1752887458918,-460.0,0.00017534,2]
[373155978,1752887458928,-460.0,0.00017534,2]
[373155979,1752887458937,-460.0,0.00017534,2]
[373155980,1752887458946,-460.0,0.00017534,2]
[373155981,1752887458956,-198.15149403,0.00017534,2]
[373155982,1752887458965,-838.3,0.00017534,2]
[373155983,1752887458975,-460.0,0.00017534,2]
[373155984,1752887458984,-460.0,0.00017534,2]
[373155985,1752887458993,-579.24,0.00017534,2]
[373155986,1752887459002,-460.0,0.00017534,2]
[373155987,1752887459012,-460.0,0.00017534,2]
[373155988,1752887459021,-460.0,0.00017534,2]
[373155989,1752887459030,-460.0,0.00017534,2]
[373155990,1752887459040,-460.0,0.00017534,2]
[373155991,1752887459050,-460.0,0.00017534,2]
[373155992,1752887459059,-460.0,0.00017534,2]
[373155993,1752887459069,-279.1749785,0.00017534,2]
[373155994,1752887459078,-610.12,0.00017534,2]
[373155995,1752887459088,-460.0,0.00017534,2]
[373155996,1752887459097,-151.0,0.00017534,2]
[373155997,1752887459108,-441.36906242,0.00017534,2]
[373155998,1752887459118,-460.0,0.00017534,2]
[373155999,1752887459128,-515.52,0.00017534,2]
[373156000,1752887459138,-460.0,0.00017534,2]
[373156001,1752887459147,-503.83,0.00017534,2]
[373156002,1752887459157,-460.0,0.00017534,2]
[373156003,1752887459166,-487.24,0.00017534,2]
[373156004,1752887459175,-4489.86,0.00017534,2]
[373156005,1752887459184,-460.0,0.00017534,2]
[373156006,1752887459194,-460.0,0.00017534,2]
[373156007,1752887459203,-460.0,0.00017534,2]
[373156008,1752887459214,-460.0,0.00017534,2]
[373156009,1752887459223,-460.0,0.00017534,2]
[373156010,1752887459233,-666.5,0.00017534,2]
[373156011,1752887459243,-622.41,0.00017534,2]
[373156012,1752887459252,-462.69104136,0.00017534,2]
[373156013,1752887459262,-460.0,0.00017534,2]
[373156014,1752887459271,-460.0,0.00017534,2]
[373156015,1752887459280,-2494.33,0.00017534,2]
[373156016,1752887459290,-460.0,0.00017534,2]
[373156017,1752887459300,-592.03,0.00017534,2]
[373156018,1752887459309,-460.0,0.00017534,2]
[373156019,1752887459319,-460.0,0.00017534,2]
[373156020,1752887459328,-460.0,0.00017534,2]
[373156021,1752887459338,-781.0,0.00017534,2]
[373156022,1752887459347,-1924.42,0.00017534,2]
[373156023,1752887459359,-777.69,0.00017534,2]
[373156024,1752887459369,-496.74,0.00017534,2]
[373156025,1752887459378,-241.92115995,0.00017534,2]
[373156026,1752887459387,-460.0,0.00017534,2]
[373156027,1752887459397,-460.0,0.00017534,2]
[373156028,1752887459407,-494.0,0.00017534,2]
[373156029,1752887459416,-460.0,0.00017534,2]
[373156030,1752887459426,-1019.11,0.00017534,2]
[373156031,1752887459435,-460.0,0.00017534,2]
[373156032,1752887459444,-460.0,0.00017534,2]
[373156033,1752887459454,-460.0,0.00017534,2]
[373156034,1752887459463,-564.63,0.00017534,2]
[373156035,1752887459473,-556.53,0.00017534,2]
[373156036,1752887459482,-541.96,0.00017534,2]
[373156037,1752887459492,-460.0,0.00017534,2]
[373156038,1752887459501,-460.0,0.00017534,2]
[373156039,1752887459511,-460.0,0.00017534,2]
[373156040,1752887459520,-1447.51,0.00017534,2]
[373156041,1752887459529,-460.0,0.00017534,2]
[373156042,1752887459539,-460.0,0.00017534,2]
[373156043,1752887459552,-460.0,0.00017534,2]
[373156044,1752887459561,-635.79,0.00017534,2]
[373156045,1752887459571,-460.0,0.00017534,2]
[373156046,1752887459581,-460.0,0.00017534,2]
[373156047,1752887459595,-460.0,0.00017534,2]
[373156048,1752887459607,-1371.73,0.00017534,2]
[373156049,1752887459617,-460.0,0.00017534,2]
[373156050,1752887459626,-1999.99,0.00017534,2]
[373156051,1752887459636,-4634.36,0.00017534,2]
[373156052,1752887459710,-489.23205524,0.00017534,2]
[373156053,1752887459719,-460.0,0.00017534,2]
[373156054,1752887459729,-460.0,0.00017534,2]
[373156055,1752887459739,-460.0,0.00017534,2]
[373156056,1752887459748,-2972.84,0.00017534,2]
[373156057,1752887459758,-460.0,0.00017534,2]
[373156058,1752887459767,-336.71768669,0.00017534,2]
[373156059,1752887459779,-551.48,0.00017534,2]
[373156060,1752887459788,-460.0,0.00017534,2]
[373156061,1752887459797,-460.0,0.00017534,2]
[373156062,1752887459807,-460.0,0.00017534,2]
[373156063,1752887459817,-253.55376117,0.00017534,2]
[373156064,1752887459827,-460.0,0.00017534,2]
[373156065,1752887459837,-692.09,0.00017534,2]
[373156066,1752887459846,-460.0,0.00017534,2]
[373156067,1752887459860,-500.0,0.00017573,2]
[373156068,1752887459870,-203.96689228,0.00017573,2]
[373156069,1752887459879,-160.0,0.00017763,2]
[373156070,1752887459888,-12610.43989422,0.00017763,2]
[373156071,1752887459898,-476.25663856,0.00017763,2]
[373156072,1752887459907,-160.0,0.00017763,2]
[373156073,1752887459917,-214.4881157,0.00017763,2]
[373156074,1752887459927,-230.89969799,0.00017763,2]
[373156075,1752887459936,-525.75194068,0.00017763,2]
[373156076,1752887459945,-160.0,0.00017763,2]
[373156077,1752887459955,-839.30593155,0.00017763,2]
[373156078,1752887459963,-215.63268315,0.00017763,2]
[373156079,1752887459973,-160.0,0.00017763,2]
[373156080,1752887459983,-160.0,0.00017763,2]
[373156081,1752887459992,-150.39478184,0.00017792,2]
[373156082,1752887460001,-500.0,0.00017792,2]
[373156083,1752887460012,-170.16000748,0.00017792,2]
[373156084,1752887460021,-305.26285468,0.00017792,2]
[373156085,1752887460031,-1026.84,0.00017798,3]
[373156086,1752887460041,-513.42,0.00017798,3]
[373156087,1752887460050,-338.16,0.00017798,3]
[373156088,1752887460060,-606.32,0.00017807,2]
[373156089,1752887460070,-460.0,0.00017808,2]
[373156090,1752887460081,-476.43162669,0.00017808,2]
[373156091,1752887460103,-828.36,0.00017808,2]
[373156092,1752887460125,-523.58708951,0.00017808,2]
[373156093,1752887460141,-460.0,0.00017808,2]
[373156094,1752887460151,-460.0,0.00017808,2]
[373156095,1752887460160,-460.0,0.00017808,2]
[373156096,1752887460170,-460.0,0.00017808,2]
[373156097,1752887460179,-460.0,0.00017808,2]
[373156098,1752887460189,-460.0,0.00017808,2]
[373156099,1752887460198,-460.0,0.00017808,2]
[373156100,1752887460208,-460.0,0.00017808,2]
[373156101,1752887460217,-460.0,0.00017808,2]
[373156102,1752887460227,-460.0,0.00017808,2]
[373156103,1752887460236,-460.0,0.00017808,2]
[373156104,1752887460245,-460.0,0.00017808,2]
[373156105,1752887460262,-460.0,0.00017808,2]
[373156106,1752887460278,-524.31,0.00017808,2]
[373156107,1752887460297,-460.0,0.00017808,2]
[373156108,1752887460316,-460.0,0.00017808,2]
[373156109,1752887460336,-460.0,0.00017808,2]
[373156110,1752887460355,-460.0,0.00017808,2]
[373156111,1752887460371,-281.42296728,0.00017808,2]
[373156112,1752887460387,-460.0,0.00017808,2]
[373156113,1752887460401,-460.0,0.00017808,2]
[373156114,1752887460421,-460.0,0.00017808,2]
[373156115,1752887460440,-460.0,0.00017808,2]
[373156117,1752887460457,-460.0,0.00017808,2]
[373156118,1752887460469,-460.0,0.00017808,2]
[373156119,1752887460488,-460.0,0.00017808,2]
[373156120,1752887460503,-460.0,0.00017808,2]
[373156121,1752887460519,-460.0,0.00017808,2]
[373156122,1752887460532,-460.0,0.00017808,2]
[373156123,1752887460547,-460.0,0.00017808,2]
[373156124,1752887460561,-460.0,0.00017808,2]
[373156125,1752887460576,-460.0,0.00017808,2]
[373156126,1752887460590,-460.0,0.00017808,2]
[373156127,1752887460611,-460.0,0.00017808,2]
[373156128,1752887460626,-460.0,0.00017808,2]
[373156129,1752887460640,-460.0,0.00017808,2]
[373156130,1752887460655,-460.0,0.00017808,2]
[373156131,1752887460670,-460.0,0.00017808,2]
[373156132,1752887460684,-460.0,0.00017808,2]
[373156133,1752887460701,-460.0,0.00017808,2]
[373156134,1752887460716,-460.0,0.00017808,2]
[373156135,1752887460730,-460.0,0.00017808,2]
[373156136,1752887460745,-460.0,0.00017808,2]
[373156137,1752887460761,-460.0,0.00017808,2]
[373156138,1752887460778,-371.66227126,0.00017808,2]
[373156139,1752887460793,-460.0,0.00017808,2]
[373156140,1752887460808,-460.0,0.00017808,2]
[373156141,1752887460824,-460.0,0.00017808,2]
[373156142,1752887460838,-461.67271202,0.00017808,2]
[373156143,1752887460859,-460.0,0.00017808,2]
[373156144,1752887460874,-460.0,0.00017808,2]
[373156145,1752887460889,-460.0,0.00017808,2]